Cogmind - Beta 10.2 @@@ ROGUE MODE // 2021.07.17 @ 15:17:34 Player: User Result: Destroyed by G-47 Trooper with Particle Gun Performance ------------- Evolutions (2) 1000 Regions Visited (3) 600 Robots Destroyed (29) 145 Value Destroyed (808) 808 Prototype IDs (0) 0 Alien Tech Used (0) 0 Bonus (0) 0 TOTAL SCORE: 2553 Bonus ------- None Cogmind --------- Core Integrity 0/550 Matter 201/300 Energy 10/100 System Corruption 0% Temperature Cool (355) Movement Core (200) Ox3 Location -8/Materials Parts ------- > --- POWER (2) -------- (None) > --- PROPULSION (3) --- (None) > --- UTILITY (4) ------ High-capacity Storage Unit Weight Redist. System Weapon Cycler > --- WEAPON (2) ------- (None) > --- INVENTORY (12) --- Ion Engine Heavy Ion Engine Medium Treads Aluminum Leg Improved Aluminum Leg Visual Processing Unit Weapon Cycler Weapon Cycler Insulated Plating Hacking Suite Peak State ------------ > --- POWER ------------ Light Nuclear Core Light Nuclear Core > --- PROPULSION ------- Medium Treads Medium Treads Medium Treads > --- UTILITY ---------- Small Storage Unit High-capacity Storage Unit Weight Redist. System Weapon Cycler > --- WEAPON ----------- Particle Gun Light Cannon > --- INVENTORY -------- Ion Engine Heavy Ion Engine Medium Treads Aluminum Leg Improved Aluminum Leg Visual Processing Unit Weapon Cycler Weapon Cycler Insulated Plating Medium Laser Light Assault Rifle [Rating: 31] Favorites ----------- Power Light Nuclear Core Engine Light Ion Engine Power Core Light Nuclear Core Propulsion Aluminum Leg Treads Medium Treads Leg Aluminum Leg Utility Small Storage Unit Device Weapon Cycler Storage Small Storage Unit Weapon Light Cannon Energy Gun Medium Laser Ballistic Gun Assault Rifle Ballistic Cannon Light Cannon Build | -11 -10 -9 -8 ------- Run | Scr Mat Mat Mat Slots Evolved 4 | . . 2 2 Power 1 | . . . 1 Propulsion 1 | . . 1 . Utility 2 | . . 1 1 Weapon . | . . . . Parts Attached 27 | 4 6 2 15 Power 5 | 1 1 . 3 Engine 3 | 1 1 . 1 Core 2 | . . . 2 Reactor . | . . . . Propulsion 9 | 1 2 2 4 Treads 3 | . . . 3 Leg 6 | 1 2 2 1 Wheel . | . . . . Hover . | . . . . Flight . | . . . . Utility 4 | 1 1 . 2 Device 2 | . . . 2 Storage 2 | 1 1 . . Processor . | . . . . Hackware . | . . . . Protection . | . . . . Artifact . | . . . . Weapon 9 | 1 2 . 6 Energy Gun 4 | . 1 . 3 Energy Cannon . | . . . . Ballistic Gun 3 | 1 . . 2 Ballistic Cannon 2 | . 1 . 1 Launcher . | . . . . Special Weapon . | . . . . Impact Weapon . | . . . . Slashing Weapon . | . . . . Piercing Weapon . | . . . . Special Melee Weapon . | . . . . Unidentified Prototypes . | . . . . Parts Lost 14 | . 2 . 12 Power 3 | . . . 3 Propulsion 4 | . 1 . 3 Utility 1 | . . . 1 Weapon 6 | . 1 . 5 Highest Loss Streak 10 | . 2 . 10 Average Slot Usage (%) 90 | . 93 88 89 Engine 8 | . 14 11 4 Core 6 | . . . 11 Treads 10 | . . . 20 Leg 17 | . 27 33 6 Device 5 | . . . 11 Storage 20 | . 22 22 17 Energy Gun 4 | . 4 . 5 Ballistic Gun 8 | . 14 11 4 Ballistic Cannon 8 | . 8 11 7 Naked Turns . | . . . . Heaviest Build 52 | 9 46 46 52 Greatest Support 90 | 10 20 30 90 Greatest Overweight (x) 4 | . 2 1 4 Average Overweight (x) . | . . 1 . Largest Inventory Capacity 14 | 6 14 14 14 Average Capacity 12 | 5 10 14 13 Most Carried 12 | 4 6 4 12 Average Carried 6 | 2 4 3 8 Final Capacity 14 | 6 14 14 12 Final Carried 10 | 4 4 3 10 Class Distribution -------------------- 94% | Mutant 5% | Scavenger-Mutant Dominant Class ---------------- Mutant | -10/Materials Mutant | -9/Materials Mutant | -8/Materials Resources | -11 -10 -9 -8 ----------- Run | Scr Mat Mat Mat Matter Collected 754 | 240 159 91 264 Remotely . | . . . . Salvage Created 798 | . 217 265 316 Parts 60 | . 31 14 15 Haulers Intercepted 2 | . . . 2 Recyclers Shooed . | . . . . Parts Field Recycled . | . . . . Retrieved Matter . | . . . . Parts Self-Destructed . | . . . . Prevented . | . . . . Kills | -11 -10 -9 -8 ------- Run | Scr Mat Mat Mat Combat Hostiles Destroyed 21 | . 10 6 5 Guns 11 | . 4 3 4 Cannons 6 | . 2 3 1 AOE 4 | . 4 . . Classes Destroyed 6 | . 4 1 1 Hauler 2 | . . . 2 Operator 3 | . 2 . 1 Watcher 3 | . 2 1 . Swarmer 6 | . 6 . . Grunt 12 | . 4 4 4 Sentry 3 | . . 2 1 Best Kill Streak 7 | . 6 7 3 Combat Bots Only 6 | . 6 6 1 Max Kills in Single Turn 4 | . 4 1 1 Gunslinging . | . . . . Exploded 4 | . 4 . . Melee . | . . . . Uniques/NPCs Destroyed . | . . . . Combat | -11 -10 -9 -8 -------- Run | Scr Mat Mat Mat Damage Taken 2396 | . 362 225 1809 Core 655 | . 42 54 559 Absorbed by Shields . | . . . . Core Remaining (%) 89 | 100 83 86 . Volleys Fired 86 | . 20 16 50 Largest 2 | . 2 2 2 Hottest 115 | . 60 55 115 Shots Fired 165 | . 40 32 93 Gun 102 | . 24 16 62 Cannon 63 | . 16 16 31 Launcher . | . . . . Special . | . . . . Kinetic 135 | . 36 32 67 Thermal 30 | . 4 . 26 Explosive . | . . . . Electromagnetic . | . . . . Robot Hit Streak 9 | . 6 5 9 Robot Miss Streak 5 | . 5 3 3 Penetration Max . | . . . . Secondary Targets 3 | . 1 . 2 Max Gunslinging Chain 1 | . 1 . 1 Shots Hit Robots 97 | . 19 19 59 Core Hits 47 | . 16 11 20 Critical Hits . | . . . . Critical Kills . | . . . . Critical Parts Destroyed . | . . . . Melee Attacks . | . . . . Impact . | . . . . Slashing . | . . . . Piercing . | . . . . Sneak Attacks . | . . . . Combat Hostiles . | . . . . Follow-up Attacks . | . . . . Damage Inflicted 1804 | . 701 306 797 Guns 849 | . 156 174 519 Cannons 513 | . 116 132 265 Explosions 429 | . 429 . . Melee . | . . . . Ramming 13 | . . . 13 Kinetic 1073 | . 252 306 515 Thermal 718 | . 449 . 269 Explosive . | . . . . Electromagnetic . | . . . . Impact . | . . . . Slashing . | . . . . Piercing . | . . . . Highest Corruption . | . . . . Average Corruption . | . . . . Corruption Purged . | . . . . Overload Shots . | . . . . Overflow Damage 109 | . 109 . . Projectiles . | . . . . Explosions 109 | . 109 . . Melee . | . . . . Knockbacks 8 | . 1 . 7 Impact . | . . . . Kinetic 7 | . 1 . 6 Secondary 1 | . . . 1 Self-Inflicted Damage 175 | . 169 . 6 Shots 2 | . 2 . . Rammed 1 | . . . 1 Targets Rammed 1 | . . . 1 Kicked . | . . . . Crushed . | . . . . Highest Temperature 707 | . 24 9 707 Average Temperature 193 | . 6 2 238 Received Heat Transfer 960 | . 54 105 801 Effects 27 | . . . 27 Shutdowns 3 | . . . 3 Energy Bleed 7 | . . . 7 Interference 3 | . . . 3 Matter Decay 1 | . . . 1 Short Circuit 1 | . . . 1 Damage (minor) 2 | . . . 2 Damage (major) 6 | . . . 6 Damage (core) 4 | . . . 4 Siege Activations . | . . . . Robots Corrupted . | . . . . Combat Hostiles . | . . . . Parts Fried . | . . . . Impact Corruptions . | . . . . Robots Melted . | . . . . Combat Hostiles . | . . . . Parts Melted 1 | . . . 1 Heat Transferred 966 | . 300 . 666 Parts Sabotaged . | . . . . Parts Stolen . | . . . . Parts Stripped . | . . . . Power Chain Reactions . | . . . . Missiles Intercepted . | . . . . Alert | -11 -10 -9 -8 ------- Run | Scr Mat Mat Mat Peak Influence 363 | . 324 363 260 Initial 152 | . . 136 152 Average 172 | . 153 233 184 Maximum Alert Level 1 | . 1 1 1 Low Security (%) 55 | 100 67 42 47 Level 1 44 | . 32 57 52 Level 2 . | . . . . Level 3 . | . . . . Level 4 . | . . . . Level 5 . | . . . . High Security . | . . . . Max Security . | . . . . Squads Dispatched 5 | . 2 2 1 Investigation . | . . . . Extermination . | . . . . Reinforcement 5 | . 2 2 1 Assault . | . . . . Garrison . | . . . . Intercept . | . . . . Construction Impeded . | . . . . Haulers Reinforced . | . . . . Stealth | -11 -10 -9 -8 --------- Run | Scr Mat Mat Mat Distress Signals 3 | . 1 1 1 Communications Jammed . | . . . . Distress Signals . | . . . . Times Spotted 37 | . 14 10 13 Peak Tracking Total 5 | . 5 4 5 Tactical Retreats . | . . . . Traps | -11 -10 -9 -8 ------- Run | Scr Mat Mat Mat Traps Triggered . | . . . . Indirectly . | . . . . Trap Hack Attempts . | . . . . Triggered . | . . . . Disarmed . | . . . . Reprogrammed . | . . . . Reused . | . . . . Traps Extracted . | . . . . Installed . | . . . . Triggered . | . . . . Machines | -11 -10 -9 -8 ---------- Run | Scr Mat Mat Mat Machines Disabled 5 | . 4 1 . Max in Single Turn 3 | . 3 1 . Machines Sabotaged . | . . . . Garrisons Compromised . | . . . . Overloaded Fab Kills . | . . . . Fab Network Shutdowns . | . . . . Hacking | -11 -10 -9 -8 --------- Run | Scr Mat Mat Mat Machines Accessed 3 | . 1 1 1 Terminals 3 | . 1 1 1 Fabricators . | . . . . Repair Stations . | . . . . Recycling Units . | . . . . Scanalyzers . | . . . . Garrison Access . | . . . . Total Hacks 10 | . 4 3 3 Successful 3 | . 1 1 1 Failed 7 | . 3 2 2 Catastrophic . | . . . . Database Lockouts . | . . . . Manual . | . . . . Terminals 10 | . 4 3 3 Fabricators . | . . . . Repair Stations . | . . . . Recycling Units . | . . . . Scanalyzers . | . . . . Garrison Access . | . . . . Terminal Hacks 3 | . 1 1 1 Terminal Index 1 | . 1 . . Alert Level 1 | . . 1 . Unreport Threat 1 | . . . 1 Fabricator Hacks . | . . . . Repair Station Hacks . | . . . . Recycling Unit Hacks . | . . . . Scanalyzer . | . . . . Garrison Access Hacks . | . . . . Unauthorized Hacks . | . . . . Terminals . | . . . . Fabricators . | . . . . Repair Stations . | . . . . Recycling Units . | . . . . Scanalyzers . | . . . . Garrison Access . | . . . . Data Cores Recovered . | . . . . Used . | . . . . Hacking Detections 3 | . 1 1 1 Full Trace Events . | . . . . Feedback Events . | . . . . Feedback Blocked . | . . . . Robot Schematics Acquired . | . . . . Robots Built . | . . . . Matter . | . . . . Time . | . . . . Total Robot Build Rating . | . . . . Part Schematics Acquired . | . . . . Parts Built . | . . . . Matter . | . . . . Time . | . . . . Total Part Build Rating . | . . . . Parts Repaired . | . . . . Time . | . . . . Parts Recycled . | . . . . Recycled Matter . | . . . . Retrieved Matter . | . . . . Retrieved Components . | . . . . Parts Scanalyzed . | . . . . Part Schematics Acquired . | . . . . Parts Damaged . | . . . . Bothacking | -11 -10 -9 -8 ------------ Run | Scr Mat Mat Mat Used RIF Installer . | . . . . Robots Hacked . | . . . . Non-combat . | . . . . Combat . | . . . . Robot Hacks Applied . | . . . . Relay Couplers Released . | . . . . Robots Rewired . | . . . . Allies Hacked . | . . . . Hacks Repelled . | . . . . Allies | -11 -10 -9 -8 -------- Run | Scr Mat Mat Mat Total Allies . | . . . . Largest Group . | . . . . Highest-Rated Group . | . . . . Highest-Rated Ally . | . . . . Total Orders . | . . . . Ally Attacks . | . . . . Total Damage . | . . . . Kills . | . . . . Allies Corrupted . | . . . . Allies Melted . | . . . . Intel | -11 -10 -9 -8 ------- Run | Scr Mat Mat Mat Robot Analysis Total . | . . . . Derelict Logs Recovered . | . . . . Drone Launches . | . . . . Drone Recoveries . | . . . . Exploration | -11 -10 -9 -8 ------------- Run | Scr Mat Mat Mat Turns Passed 1018 | 64 295 168 491 Spaces Moved 477 | 49 149 78 201 Core 15 | 9 . . 6 Treads 147 | . . . 147 Legs 315 | 40 149 78 48 Wheels . | . . . . Hover . | . . . . Flight . | . . . . Fastest Speed 50 | 50 120 150 150 Average Speed 149 | 107 149 150 159 Slowest Speed 250 | 120 180 150 250 Overloaded Moves . | . . . . Propulsion Burnouts . | . . . . Robots Hopped . | . . . . Cave-ins Triggered . | . . . . Exploration Rate (%) 19 | 3 44 15 16 Regions Visited 3 Branch Regions . Pre-discovered Areas . | . . . . Known Exits Taken . | . . . . Unknown Exits Taken 3 | 1 1 1 . Scrap Searched . | . . . . Spaces Dug . | . . . . Terrain Destroyed 53 | . 53 . . Melee . | . . . . Projectile . | . . . . AOE 53 | . 53 . . Terrain Rammed . | . . . . Walls Destroyed . | . . . . Machines Disabled . | . . . . Actions | -11 -10 -9 -8 --------- Run | Scr Mat Mat Mat Total 634 | 60 181 97 296 Wait 9 | . . . 9 Move 474 | 48 148 77 201 Hop . | . . . . Pick Up 32 | 8 6 1 17 Fast Attach . | . . . . Attach 17 | 4 5 1 7 Detach . | . . . . Swap 10 | . 1 1 8 Drop 5 | . 1 1 3 Fire 86 | . 20 16 50 Melee . | . . . . Ram 1 | . . . 1 Kick . | . . . . Crush . | . . . . Escape Stasis . | . . . . Rewire . | . . . . Trap . | . . . . Miscellaneous . | . . . . Route ------- -11/Scrapyard -10/Materials -9/Materials -8/Materials History --------- Turn | Location | Event 23 | -11/Scrapyard | Discovered new exit (range 16) 65 | -11/Scrapyard | Entered Materials 322 | -10/Materials | Build established: Mutant 348 | -10/Materials | Discovered new exit (range 4) 360 | -10/Materials | Entered another Materials area 360 | -9/Materials | Evolved 2 slots: Propulsion x1, Utility x1 511 | -9/Materials | Discovered new exit (range 11) 528 | -9/Materials | Entered another Materials area 528 | -8/Materials | Evolved 2 slots: Power x1, Utility x1 1006 | -8/Materials | Core integrity fell below 50% 1009 | -8/Materials | Core integrity fell below 20% 1019 | -8/Materials | Destroyed by G-47 Trooper with Particle Gun Last Messages --------------- U-05 Engineer lays Concrete. Med. Treads destroyed. U-05 Engineer lays Concrete. Lgt. Assault Rifle destroyed. R-06 Scavenger collects Ion Engine. Lgt. Nuclear Core destroyed. Overheating: Core damaged (-104). Material Compactor disabled. Overheating: Energy bleed (-6). Sml. Storage Unit destroyed. Overheating: Core damaged (-71). R-06 Scavenger collects Beam Rifle. Overheating: Hcp. Storage Unit damaged (-223). Overheating: Weight Redist. System damaged (-3). Overheating: Energy bleed (-2). K-01 Serf collects debris. U-05 Engineer lays Concrete. Slammed into G-47 Trooper. Overheating: Energy bleed (-1). U-05 Engineer lays Concrete. Map ----- +----------------------------------------------------+ | ?????????????????????????????????????????????????? | | ?????????????????????????????????????????????????? | | ?????????????????????????????????????????????????? | | ?????????????????????????????????????????????????? | | ?????????????????????????????????????????????????? | | ?????????????????????????????????????????????????? | | ?????????????????????????????????????????????????? | | ?????????????????????????????????????????????????? | | ?????????????????????????????????????????????????? | | ?????????????????????????????????????????????????? | | ?????????????????????????????????????????????????? | | ?????????????????????????????????????????????????? | | ????????????????????????#????????????????????????? | | ??????????????????????? #???? ???????????????????? | | ??????????????????????? #??? ???????????????????? | | ????????????????+######+#???k####????????????????? | | ?????????????????r ?? ?????????????????? | | ?????????????????? ?????????????????? | | ?????????????????? u""" """????????????????? | | ???????????????????# """"" """"????????????????? | | ???????????????????# """"" """""???????????????? | | ???????????????????# """"" """"" """??????????? | | ???????????????###?# " " """ """?????????? | | ????????########T### ????????? | | ????????# ! g ! ????????? | | ????????# u!![! @g ????????? | | ????????# k [=% g ????????? | | ????????# ###+########## ????????? | | ????????# # ????????########## ?????????? | | ????????# # ?????????????????????????????? | | ????????# # ???????????????????????????? | | ?######## # / #??????????????????????????? | | ?# # # #??????????????????????????? | | ?# # # #??????????????????????????? | | ## """ + # #??????????????????????????? | | + """ # # #??????????????????????????? | | ## """ # ###########??????????????????????????? | | ?# # #????????????????????????????????????? | | ?############????????????????????????????????????? | | ?????????????????????????????????????????????????? | | ?????????????????????????????????????????????????? | | ?????????????????????????????????????????????????? | | ?????????????????????????????????????????????????? | | ?????????????????????????????????????????????????? | | ?????????????????????????????????????????????????? | | ?????????????????????????????????????????????????? | | ?????????????????????????????????????????????????? | | ?????????????????????????????????????????????????? | | | | | +----------------------------------------------------+ Best States ------------- Heat Dissipation 31 Energy Generation 23 Energy Capacity 275 Matter Stores 285 Matter Capacity 300 Sight Range 16 Terrain Scan Density 10 Additional Mass Support 6 Weapon Cycling 15 Evasion (%) 40 Recoil Reduction 3 Item Schematics ----------------- None Robot Schematics ------------------ None Fabricated ------------ Nothing Alien Tech Used ----------------- None Achievements -------------- None Challenges ------------ None Game ------ Seed CloakNovaApparatus Manual? 0 Play Time 00:12:30 Cumulative 13.1 hours Start 2021.07.17 @ 14:28:10 End 2021.07.17 @ 15:17:34 Sessions 1 Manual Loads 0 Difficulty Rogue Special Mode None Game No. 25 Rogue 25 Adventurer 0 Explorer 0 Win Type - Total 0 Types 0/0/0/0/0/0/0/0/0 Lore% 19 Gallery% 21 Achievement% 16 Wizard Run 0 Options --------- ASCII 0 Keyboard 0 Movement Mouse Keybinds 0 Fullscreen 1 Font 20/Terminus Map View 66x50 Tactical HUD 0 Map Filters NONE Filters NONE Steam 1 RUN: b517710f-2e89-45f5-826d-b0b21a3763ca